fUSD/lending_fUSD_20250312
["ID","MTS","AMOUNT","RATE_DAILY","PERIOD"]
[355969611,1741741841658,-500.0,9.999e-05,2]
[355969612,1741741841667,-500.0,9.999e-05,2]
[355969613,1741741841676,-500.0,9.999e-05,2]
[355969614,1741741841685,-500.0,9.999e-05,2]
[355969615,1741741841694,-500.0,9.999e-05,2]
[355969616,1741741841704,-798.74,9.999e-05,2]
[355969617,1741741841713,-500.0,9.999e-05,2]
[355969618,1741741841722,-500.0,9.999e-05,2]
[355969619,1741741841731,-657.32,9.999e-05,2]
[355969620,1741741841740,-500.0,9.999e-05,2]
[355969621,1741741841749,-500.0,9.999e-05,2]
[355969622,1741741841759,-500.0,9.999e-05,2]
[355969623,1741741841767,-500.0,9.999e-05,2]
[355969624,1741741841776,-574.31,9.999e-05,2]
[355969625,1741741841786,-500.0,9.999e-05,2]
[355969626,1741741841795,-500.0,9.999e-05,2]
[355969627,1741741841803,-554.56,9.999e-05,2]
[355969628,1741741841812,-500.0,9.999e-05,2]
[355969629,1741741841821,-500.0,9.999e-05,2]
[355969630,1741741841830,-500.0,9.999e-05,2]
[355969631,1741741841839,-500.0,9.999e-05,2]
[355969632,1741741841848,-500.0,9.999e-05,2]
[355969633,1741741841857,-497.42170741,9.999e-05,2]
[355969634,1741741841866,-635.64,9.999e-05,2]
[355969635,1741741841875,-500.0,9.999e-05,2]
[355969636,1741741841883,-500.0,9.999e-05,2]
[355969637,1741741841893,-500.0,9.999e-05,2]
[355969638,1741741841901,-500.0,9.999e-05,2]
[355969639,1741741841911,-500.0,9.999e-05,2]
[355969640,1741741841919,-500.0,9.999e-05,2]
[355969641,1741741841929,-500.0,9.999e-05,2]
[355969642,1741741841939,-500.0,9.999e-05,2]
[355969643,1741741841948,-500.0,9.999e-05,2]
[355969644,1741741841957,-704.19,9.999e-05,2]
[355969645,1741741841966,-500.0,9.999e-05,2]
[355969646,1741741841976,-500.0,9.999e-05,2]
[355969647,1741741841986,-500.0,9.999e-05,2]
[355969648,1741741841995,-663.77,9.999e-05,2]
[355969649,1741741842005,-776.65,9.999e-05,2]
[355969650,1741741842015,-627.51156724,9.999e-05,2]
[355969651,1741741842024,-746.06,9.999e-05,2]
[355969652,1741741842033,-500.0,9.999e-05,2]
[355969653,1741741842042,-805.72,9.999e-05,2]
[355969654,1741741842051,-578.05,9.999e-05,2]
[355969655,1741741842061,-500.0,9.999e-05,2]
[355969656,1741741842069,-500.0,9.999e-05,2]
[355969657,1741741842079,-500.0,9.999e-05,2]
[355969658,1741741842093,-500.0,9.999e-05,2]
[355969659,1741741842103,-294.29432897,9.999e-05,2]
[355969660,1741741842112,-560.9,9.999e-05,2]
[355969661,1741741842122,-308.26325269,9.999e-05,2]
[355969662,1741741842131,-500.0,9.999e-05,2]
[355969663,1741741842140,-500.0,9.999e-05,2]
[355969664,1741741842150,-629.78,9.999e-05,2]
[355969665,1741741842159,-1132.98,9.999e-05,2]
[355969666,1741741842170,-1000.0,9.999e-05,2]
[355969667,1741741842180,-486.82599148,9.999e-05,2]
[355969668,1741741842190,-368.91507127,9.999e-05,2]
[355969669,1741741842199,-500.0,9.999e-05,2]
[355969670,1741741842208,-571.73,9.999e-05,2]
[355969671,1741741842218,-500.0,9.999e-05,2]
[355969672,1741741842227,-622.4,9.999e-05,2]
[355969673,1741741842236,-290.06965956,9.999e-05,2]
[355969674,1741741842246,-551.97,9.999e-05,2]
[355969675,1741741842255,-500.0,9.999e-05,2]
[355969676,1741741842264,-500.0,9.999e-05,2]
[355969677,1741741842273,-500.0,9.999e-05,2]
[355969678,1741741842282,-545.41262743,9.999e-05,2]
[355969679,1741741842292,-500.0,9.999e-05,2]
[355969680,1741741842301,-500.0,9.999e-05,2]
[355969681,1741741842312,-500.0,9.999e-05,2]
[355969682,1741741842322,-500.0,9.999e-05,2]
[355969683,1741741842331,-560.78,9.999e-05,2]
[355969684,1741741842340,-288.75320348,9.999e-05,2]
[355969685,1741741842349,-738.0,9.999e-05,2]
[355969686,1741741842359,-525.27,9.999e-05,2]
[355969687,1741741842368,-500.0,9.999e-05,2]
[355969688,1741741842378,-500.0,9.999e-05,2]
[355969689,1741741842387,-500.0,9.999e-05,2]
[355969690,1741741842396,-537.93,9.999e-05,2]
[355969691,1741741842405,-500.0,9.999e-05,2]
[355969692,1741741842415,-500.0,9.999e-05,2]
[355969693,1741741842424,-549.13,9.999e-05,2]
[355969694,1741741842433,-500.0,9.999e-05,2]
[355969695,1741741842443,-500.0,9.999e-05,2]
[355969696,1741741842453,-793.47,9.999e-05,2]
[355969697,1741741842462,-500.0,9.999e-05,2]
[355969698,1741741842471,-500.0,9.999e-05,2]
[355969699,1741741842481,-500.0,9.999e-05,2]
[355969700,1741741842490,-500.0,9.999e-05,2]
[355969701,1741741842499,-515.75,9.999e-05,2]
[355969702,1741741842508,-723.02,9.999e-05,2]
[355969703,1741741842518,-596.34,9.999e-05,2]
[355969704,1741741842528,-288.74904111,9.999e-05,2]
[355969705,1741741842537,-500.0,9.999e-05,2]
[355969706,1741741842546,-500.0,9.999e-05,2]
[355969707,1741741842556,-500.0,9.999e-05,2]
[355969708,1741741842568,-500.0,9.999e-05,2]
[355969709,1741741842583,-500.0,9.999e-05,2]
[355969710,1741741842593,-500.0,9.999e-05,2]
[355969711,1741741842603,-500.0,9.999e-05,2]
[355969712,1741741842612,-500.0,9.999e-05,2]
[355969713,1741741842622,-500.0,9.999e-05,2]
[355969714,1741741842630,-500.0,9.999e-05,2]
[355969715,1741741842639,-500.0,9.999e-05,2]
[355969716,1741741842648,-500.0,9.999e-05,2]
[355969717,1741741842657,-500.0,9.999e-05,2]
[355969718,1741741842666,-500.0,9.999e-05,2]
[355969719,1741741842675,-500.0,9.999e-05,2]
[355969720,1741741842684,-500.0,9.999e-05,2]
[355969721,1741741842693,-597.48,9.999e-05,2]
[355969723,1741741842702,-692.98,9.999e-05,2]
[355969724,1741741842711,-500.0,9.999e-05,2]
[355969726,1741741842720,-500.0,9.999e-05,2]
[355969727,1741741842729,-500.0,9.999e-05,2]
[355969729,1741741842738,-500.0,9.999e-05,2]
[355969731,1741741842747,-500.0,9.999e-05,2]
[355969733,1741741842756,-500.0,9.999e-05,2]
[355969735,1741741842765,-1887.73,9.999e-05,2]
[355969736,1741741842781,-500.0,9.999e-05,2]
[355969737,1741741842790,-500.0,9.999e-05,2]
[355969738,1741741842799,-500.0,9.999e-05,2]
[355969739,1741741842808,-574.35,9.999e-05,2]
[355969740,1741741842816,-607.3,9.999e-05,2]
[355969741,1741741842826,-500.0,9.999e-05,2]
[355969742,1741741842834,-500.0,9.999e-05,2]
[355969743,1741741842843,-577.26,9.999e-05,2]
[355969744,1741741842852,-500.0,9.999e-05,2]
[355969746,1741741842861,-500.0,9.999e-05,2]
[355969748,1741741842870,-500.0,9.999e-05,2]
[355969750,1741741842879,-739.43,9.999e-05,2]
[355969752,1741741842887,-500.0,9.999e-05,2]
[355969753,1741741842896,-500.0,9.999e-05,2]
[355969755,1741741842905,-500.0,9.999e-05,2]
[355969757,1741741842915,-500.0,9.999e-05,2]
[355969758,1741741842924,-534.55,9.999e-05,2]
[355969759,1741741842933,-500.0,9.999e-05,2]
[355969760,1741741842943,-500.0,9.999e-05,2]
[355969761,1741741842952,-500.0,9.999e-05,2]
[355969762,1741741842962,-571.91,9.999e-05,2]
[355969764,1741741842971,-648.43,9.999e-05,2]
[355969767,1741741842981,-500.0,9.999e-05,2]
[355969770,1741741842990,-593.23,9.999e-05,2]
[355969772,1741741842999,-500.0,9.999e-05,2]
[355969773,1741741843007,-500.0,9.999e-05,2]
[355969775,1741741843016,-264.01999931,9.999e-05,2]
[355969777,1741741843026,-500.0,9.999e-05,2]
[355969779,1741741843035,-911.0,0.0001,2]
[355969781,1741741843044,-7354.50159597,0.0001,2]
[355969782,1741741843054,-1555448.74737011,0.0001,2]
[355969783,1741741843326,-0.0009428,0.0001,2]
[355969787,1741741843814,-648.7634381,9.899e-05,2]
[355969788,1741741844175,-330.37025421,9.899e-05,2]
[355969809,1741741845985,-2890.33831613,9.899e-05,2]
[355969824,1741741846210,-1007.3814,9.899e-05,2]
[355969825,1741741846270,-123.14659156,9.899e-05,2]
[355969826,1741741846280,-3867.64551846,9.904e-05,2]
[355969827,1741741846289,-3867.64551846,9.905e-05,2]
[355969828,1741741846300,-500.0,9.999e-05,2]
[355969829,1741741846309,-500.0,9.999e-05,2]
[355969830,1741741846319,-11077.70192937,0.0001,2]
[355969831,1741741996599,1157.19,8.219e-05,2]
[355969840,1741742489235,-500.0,9.999e-05,7]
[355969841,1741742489291,-5548.0,0.000101,5]
[355969842,1741742489336,-500.0,0.00010273,7]
[355969843,1741742497226,283.41,8.879e-05,2]
[355969849,1741742924790,-933.56383242,8.911e-05,2]
[355969867,1741743032340,-66.43616758,8.911e-05,2]
[355969868,1741743032350,-550.0,9e-05,2]
[355969869,1741743032360,-2491.93,9.007e-05,2]
[355969870,1741743032369,-1004.09873858,9.12e-05,2]
[355969871,1741743032379,-150.0,9.12e-05,2]
[355969872,1741743032388,-171.42,9.171e-05,2]
[355969873,1741743032397,-300.0,9.179e-05,2]
[355969874,1741743032407,-664.37,9.18e-05,2]
[355969875,1741743032416,-883.6,9.18e-05,2]
[355969876,1741743032425,-1557.48,9.18e-05,2]
[355969877,1741743032439,-500.0,9.233e-05,2]
[355969878,1741743032448,-150.0,9.299e-05,2]
[355969879,1741743032458,-36074.44243198,9.3e-05,2]
[355969880,1741743032579,-1156.01364287,9.3e-05,2]
[355969881,1741743032590,-1183.0,9.3e-05,2]
[355969896,1741743038408,-4022.39633508,9.3e-05,2]
[355969898,1741743040303,-303.61012991,9.3e-05,2]
[355969899,1741743040558,-1137.84035876,9.3e-05,2]
[355969900,1741743040569,-317.6173502,9.3e-05,2]
[355969901,1741743040581,-452.9945539,9.3e-05,2]
[355969902,1741743040593,-1597.99710519,9.3e-05,2]
[355969903,1741743040640,-70.70539984,9.3e-05,2]
[355969904,1741743040651,-691.13045541,9.3e-05,2]
[355969905,1741743040663,-3553.97594792,9.3e-05,2]
[355969906,1741743040673,-266.6244499,9.3e-05,2]
[355969907,1741743040694,-5303.70558786,9.3e-05,2]
[355969908,1741743040702,-463.64,9.3e-05,2]
[355969909,1741743040711,-150.0,9.562e-05,7]
[355969910,1741743040721,-786.0,9.778e-05,2]
[355969911,1741743040730,-907.0,9.778e-05,2]
[355969912,1741743040739,-1270.0,9.778e-05,2]
[355969913,1741743040748,-541.0,9.778e-05,2]
[355969914,1741743040759,-1428.0,9.778e-05,2]
[355969915,1741743040781,-4021.098,9.778e-05,2]
[355969916,1741743040794,-299.638,9.778e-05,2]
[355969917,1741743040803,-3137.173,9.778e-05,2]
[355969918,1741743040813,-192.711,9.778e-05,2]
[355969919,1741743040822,-535.375,9.778e-05,2]
[355969920,1741743040831,-205.0,9.8e-05,2]
[355969921,1741743040841,-150.0,9.802e-05,2]
[355969922,1741743040850,-2324.13091716,9.828e-05,2]
[355969923,1741743040859,-150.0,9.887e-05,2]
[355969924,1741743040868,-2081.853,9.891e-05,2]
[355969925,1741743040878,-178.937,9.891e-05,2]
[355969926,1741743040887,-1000.0,9.898e-05,2]
[355969927,1741743040896,-11473.2528,9.899e-05,2]
[355969928,1741743040905,-5000.0,9.899e-05,2]
[355969929,1741743040914,-2500.0,9.899e-05,2]
[355969930,1741743040923,-927.935,9.9e-05,2]
[355969931,1741743040932,-3867.64551846,9.906e-05,2]
[355969932,1741743040941,-150.0,9.908e-05,2]
[355969933,1741743040951,-150.0,9.965e-05,2]
[355969934,1741743040960,-500.0,9.973e-05,2]
[355969935,1741743040969,-703.84,9.998e-05,2]
[355969936,1741743040979,-564.24612574,9.998e-05,2]
[355969937,1741743040988,-500.0,9.998e-05,2]
[355969938,1741743040998,-500.0,9.998e-05,2]
[355969940,1741743041007,-500.0,9.998e-05,2]
[355969941,1741743041016,-500.0,9.998e-05,2]
[355969942,1741743041025,-500.0,9.998e-05,2]
[355969943,1741743041034,-500.0,9.998e-05,2]
[355969944,1741743041043,-676.53,9.998e-05,2]
[355969945,1741743041052,-500.0,9.998e-05,2]
[355969946,1741743041061,-567.36,9.998e-05,2]
[355969947,1741743041070,-500.0,9.998e-05,2]
[355969948,1741743041079,-500.0,9.998e-05,2]
[355969949,1741743041089,-500.0,9.998e-05,2]
[355969950,1741743041098,-500.0,9.998e-05,2]
[355969951,1741743041108,-500.0,9.998e-05,2]
[355969952,1741743041117,-500.0,9.998e-05,2]
[355969953,1741743041126,-500.0,9.998e-05,2]
[355969954,1741743041135,-510.61496287,9.998e-05,2]
[355969955,1741743041144,-500.0,9.998e-05,2]
[355969956,1741743041154,-679.9,9.998e-05,2]
[355969957,1741743041163,-500.0,9.998e-05,2]
[355969958,1741743041173,-500.0,9.998e-05,2]
[355969959,1741743041182,-500.0,9.998e-05,2]
[355969960,1741743041191,-500.0,9.998e-05,2]
[355969961,1741743041201,-500.0,9.998e-05,2]
[355969962,1741743041210,-500.0,9.998e-05,2]
[355969963,1741743041219,-500.0,9.998e-05,2]
[355969964,1741743041228,-500.0,9.998e-05,2]
[355969965,1741743041237,-500.0,9.998e-05,2]
[355969966,1741743041247,-516.07,9.998e-05,2]
[355969967,1741743041256,-500.0,9.998e-05,2]
[355969968,1741743041265,-500.0,9.998e-05,2]
[355969969,1741743041274,-500.0,9.998e-05,2]
[355969970,1741743041284,-755.81,9.998e-05,2]
[355969971,1741743041297,-500.0,9.998e-05,2]
[355969972,1741743041314,-780.99,9.998e-05,2]
[355969973,1741743041324,-500.0,9.998e-05,2]
[355969974,1741743041334,-500.0,9.998e-05,2]
[355969975,1741743041343,-500.0,9.998e-05,2]
[355969976,1741743041352,-656.64,9.998e-05,2]
[355969977,1741743041361,-696.67,9.998e-05,2]
[355969978,1741743041370,-806.04,9.998e-05,2]
[355969979,1741743041379,-500.0,9.998e-05,2]
[355969980,1741743041389,-549.52,9.998e-05,2]
[355969981,1741743041398,-500.0,9.998e-05,2]
[355969982,1741743041410,-758.59,9.998e-05,2]
[355969983,1741743041419,-667.41,9.998e-05,2]
[355969984,1741743041429,-500.0,9.998e-05,2]
[355969985,1741743041441,-500.0,9.998e-05,2]
[355969986,1741743041450,-500.0,9.998e-05,2]
[355969987,1741743041458,-698.35,9.998e-05,2]
[355969988,1741743041468,-500.0,9.998e-05,2]
[355969989,1741743041478,-500.0,9.998e-05,2]
[355969990,1741743041487,-660.29,9.998e-05,2]
[355969991,1741743041496,-500.0,9.998e-05,2]
[355969992,1741743041505,-567.55,9.998e-05,2]
[355969993,1741743041515,-500.0,9.998e-05,2]
[355969994,1741743041524,-622.15,9.998e-05,2]
[355969995,1741743041533,-901.31,9.998e-05,2]
[355969996,1741743041542,-582.6,9.998e-05,2]
[355969997,1741743041551,-500.0,9.998e-05,2]
[355969998,1741743041560,-867.67,9.998e-05,2]
[355969999,1741743041570,-500.0,9.998e-05,2]
[355970000,1741743041579,-571.75,9.998e-05,2]
[355970001,1741743041588,-500.0,9.998e-05,2]
[355970002,1741743041597,-576.45,9.998e-05,2]
[355970003,1741743041607,-500.0,9.998e-05,2]
[355970004,1741743041616,-929.04,9.998e-05,2]
[355970005,1741743041625,-500.0,9.998e-05,2]
[355970006,1741743041634,-500.0,9.998e-05,2]
[355970007,1741743041643,-500.0,9.998e-05,2]
[355970008,1741743041652,-527.7,9.998e-05,2]
[355970009,1741743041662,-500.0,9.998e-05,2]
[355970010,1741743041672,-500.0,9.998e-05,2]
[355970011,1741743041681,-1128.55,9.998e-05,2]
[355970012,1741743041690,-1402.13,9.998e-05,2]
[355970013,1741743041699,-671.49,9.998e-05,2]
[355970014,1741743041708,-1010.71,9.998e-05,2]
[355970016,1741743041717,-702.24,9.998e-05,2]
[355970017,1741743041725,-500.0,9.998e-05,2]
[355970018,1741743041734,-890.45,9.998e-05,2]
[355970019,1741743041744,-500.0,9.998e-05,2]
[355970020,1741743041753,-500.0,9.998e-05,2]
[355970021,1741743041762,-500.0,9.998e-05,2]
[355970022,1741743041771,-500.0,9.998e-05,2]
[355970023,1741743041780,-500.0,9.998e-05,2]
[355970024,1741743041789,-935.2,9.998e-05,2]
[355970025,1741743041799,-639.99,9.998e-05,2]
[355970026,1741743041808,-500.0,9.998e-05,2]
[355970027,1741743041817,-560.76,9.998e-05,2]
[355970028,1741743041826,-500.0,9.998e-05,2]
[355970029,1741743041835,-1317.91,9.998e-05,2]
[355970030,1741743041843,-500.0,9.998e-05,2]
[355970031,1741743041852,-500.0,9.998e-05,2]
[355970032,1741743041862,-500.0,9.998e-05,2]
[355970033,1741743041871,-500.0,9.998e-05,2]
[355970034,1741743041880,-590.04986616,9.999e-05,2]
[355970035,1741743041889,-574.39,9.999e-05,2]
[355970036,1741743041898,-500.0,9.999e-05,2]
[355970037,1741743041908,-500.0,9.999e-05,2]
[355970038,1741743041917,-500.0,9.999e-05,2]
[355970039,1741743041926,-500.0,9.999e-05,2]
[355970040,1741743041935,-500.0,9.999e-05,2]
[355970041,1741743041944,-583.1804515,9.999e-05,2]
[355970042,1741743041953,-500.0,9.999e-05,2]
[355970043,1741743041962,-500.0,9.999e-05,2]
[355970044,1741743041972,-500.0,9.999e-05,2]
[355970045,1741743041982,-500.0,9.999e-05,2]
[355970046,1741743041991,-663.59,9.999e-05,2]
[355970047,1741743042000,-500.0,9.999e-05,2]
[355970048,1741743042009,-545.19,9.999e-05,2]
[355970049,1741743042019,-500.0,9.999e-05,2]
[355970050,1741743042029,-500.0,9.999e-05,2]
[355970051,1741743042038,-500.0,9.999e-05,2]
[355970052,1741743042048,-500.0,9.999e-05,2]
[355970053,1741743042058,-500.0,9.999e-05,2]
[355970054,1741743042069,-528.55,9.999e-05,2]
[355970055,1741743042079,-500.0,9.999e-05,2]
[355970056,1741743042088,-500.0,9.999e-05,2]
[355970057,1741743042098,-500.0,9.999e-05,2]
[355970058,1741743042107,-339.14446603,9.999e-05,2]
[355970059,1741743042117,-500.0,9.999e-05,2]
[355970060,1741743042127,-236.91318793,9.999e-05,2]
[355970061,1741743042137,-500.0,9.999e-05,2]
[355970062,1741743042147,-500.0,9.999e-05,2]
[355970063,1741743042159,-500.0,9.999e-05,2]
[355970064,1741743042168,-500.0,9.999e-05,2]
[355970065,1741743042180,-500.0,9.999e-05,2]
[355970066,1741743042189,-500.0,9.999e-05,2]
[355970067,1741743042200,-500.0,9.999e-05,2]
[355970068,1741743042209,-500.0,9.999e-05,2]
[355970069,1741743042219,-500.0,9.999e-05,2]
[355970070,1741743042230,-500.0,9.999e-05,2]
[355970071,1741743042240,-637.68,9.999e-05,2]
[355970072,1741743042249,-543.05,9.999e-05,2]
[355970073,1741743042259,-500.0,9.999e-05,2]
[355970074,1741743042268,-500.0,9.999e-05,2]
[355970075,1741743042278,-500.0,9.999e-05,2]
[355970076,1741743042287,-500.0,9.999e-05,2]
[355970077,1741743042296,-500.0,9.999e-05,2]
[355970078,1741743042306,-500.0,9.999e-05,2]
[355970079,1741743042315,-500.0,9.999e-05,2]
[355970080,1741743042326,-569.02,9.999e-05,2]
[355970081,1741743042335,-500.0,9.999e-05,2]
[355970082,1741743042345,-500.0,9.999e-05,2]
[355970083,1741743042354,-500.0,9.999e-05,2]
[355970084,1741743042363,-635.4,9.999e-05,2]
[355970085,1741743042373,-500.0,9.999e-05,2]
[355970086,1741743042382,-500.0,9.999e-05,2]
[355970087,1741743042392,-500.0,9.999e-05,2]
[355970088,1741743042401,-500.0,9.999e-05,2]
[355970089,1741743042415,-266.15813852,9.999e-05,2]
[355970090,1741743042424,-595.04,9.999e-05,2]
[355970091,1741743042435,-500.0,9.999e-05,2]
[355970092,1741743042446,-500.0,9.999e-05,2]
[355970093,1741743042457,-626.14,9.999e-05,2]
[355970094,1741743042467,-500.0,9.999e-05,2]
[355970095,1741743042476,-500.0,9.999e-05,2]
[355970096,1741743042485,-500.0,9.999e-05,2]
[355970097,1741743042496,-500.0,9.999e-05,2]
[355970098,1741743042505,-500.0,9.999e-05,2]
[355970099,1741743042514,-552.68397625,9.999e-05,2]
[355970100,1741743042524,-523.78669402,9.999e-05,2]
[355970101,1741743042534,-500.0,9.999e-05,2]
[355970102,1741743042543,-500.0,9.999e-05,2]
[355970103,1741743042553,-500.0,9.999e-05,2]
[355970104,1741743042563,-500.0,9.999e-05,2]
[355970105,1741743042573,-742.42,9.999e-05,2]
[355970106,1741743042582,-500.0,9.999e-05,2]
[355970107,1741743042592,-500.0,9.999e-05,2]
[355970108,1741743042602,-500.0,9.999e-05,2]
[355970109,1741743042612,-649.73,9.999e-05,2]
[355970110,1741743042621,-500.0,9.999e-05,2]
[355970111,1741743042631,-500.0,9.999e-05,2]
[355970112,1741743042641,-500.0,9.999e-05,2]
[355970113,1741743042651,-719.98,9.999e-05,2]
[355970114,1741743042668,-500.0,9.999e-05,2]
[355970115,1741743042679,-500.0,9.999e-05,2]
[355970116,1741743042691,-500.0,9.999e-05,2]
[355970117,1741743042701,-500.0,9.999e-05,2]
[355970118,1741743042712,-500.0,9.999e-05,2]
[355970119,1741743042723,-500.0,9.999e-05,2]
[355970120,1741743042734,-500.0,9.999e-05,2]
[355970121,1741743042745,-500.0,9.999e-05,2]
[355970122,1741743042756,-500.0,9.999e-05,2]
[355970123,1741743042766,-500.0,9.999e-05,2]
[355970124,1741743042777,-500.0,9.999e-05,2]
[355970125,1741743042788,-500.0,9.999e-05,2]
[355970126,1741743042799,-500.0,9.999e-05,2]
[355970127,1741743042810,-500.0,9.999e-05,2]
[355970128,1741743042820,-500.0,9.999e-05,2]
[355970129,1741743042831,-500.0,9.999e-05,2]
[355970130,1741743042841,-500.0,9.999e-05,2]
[355970131,1741743042851,-500.0,9.999e-05,2]
[355970132,1741743042861,-752.81,9.999e-05,2]
[355970133,1741743042871,-500.0,9.999e-05,2]
[355970134,1741743042881,-500.0,9.999e-05,2]
[355970135,1741743042891,-500.0,9.999e-05,2]
[355970136,1741743042902,-500.0,9.999e-05,2]
[355970137,1741743042920,-500.0,9.999e-05,2]
[355970138,1741743042930,-500.0,9.999e-05,2]
[355970139,1741743042941,-531.45,9.999e-05,2]
[355970140,1741743042952,-500.0,9.999e-05,2]
[355970141,1741743042962,-500.0,9.999e-05,2]
[355970142,1741743042972,-500.0,9.999e-05,2]
[355970143,1741743042982,-500.0,9.999e-05,2]
[355970144,1741743042992,-629.93,9.999e-05,2]
[355970145,1741743043003,-500.0,9.999e-05,2]
[355970146,1741743043014,-500.0,9.999e-05,2]
[355970147,1741743043025,-500.0,9.999e-05,2]
[355970148,1741743043036,-500.0,9.999e-05,2]
[355970149,1741743043047,-234.3083753,9.999e-05,2]
[355970150,1741743043057,-500.0,9.999e-05,2]
[355970151,1741743043068,-500.0,9.999e-05,2]
[355970152,1741743043078,-500.0,9.999e-05,2]
[355970153,1741743043089,-500.0,9.999e-05,2]
[355970154,1741743043099,-500.0,9.999e-05,2]
[355970155,1741743043109,-500.0,9.999e-05,2]
[355970156,1741743043120,-500.0,9.999e-05,2]
[355970157,1741743043130,-500.0,9.999e-05,2]
[355970158,1741743043140,-500.0,9.999e-05,2]
[355970159,1741743043151,-598.37,9.999e-05,2]
[355970160,1741743043169,-500.0,9.999e-05,2]
[355970161,1741743043181,-500.0,9.999e-05,2]
[355970162,1741743043192,-500.0,9.999e-05,2]
[355970163,1741743043203,-678.43,9.999e-05,2]
[355970164,1741743043213,-500.0,9.999e-05,2]
[355970165,1741743043223,-500.0,9.999e-05,2]
[355970166,1741743043235,-500.0,9.999e-05,2]
[355970167,1741743043245,-500.0,9.999e-05,2]
[355970168,1741743043255,-704.18,9.999e-05,2]
[355970169,1741743043265,-500.0,9.999e-05,2]
[355970172,1741743043275,-500.0,9.999e-05,2]
[355970174,1741743043285,-500.0,9.999e-05,2]
[355970176,1741743043295,-500.0,9.999e-05,2]
[355970178,1741743043306,-500.0,9.999e-05,2]
[355970179,1741743043318,-624.71,9.999e-05,2]
[355970181,1741743043329,-746.04,9.999e-05,2]
[355970183,1741743043340,-547.91,9.999e-05,2]
[355970184,1741743043352,-500.0,9.999e-05,2]
[355970185,1741743043364,-677.13,9.999e-05,2]
[355970186,1741743043375,-603.53,9.999e-05,2]
[355970187,1741743043386,-673.94,9.999e-05,2]
[355970189,1741743043397,-500.0,9.999e-05,2]
[355970191,1741743043413,-500.0,9.999e-05,2]
[355970193,1741743043424,-500.0,9.999e-05,2]
[355970195,1741743043441,-609.78,9.999e-05,2]
[355970197,1741743043451,-639.84,9.999e-05,2]
[355970198,1741743043461,-500.0,9.999e-05,2]
[355970200,1741743043472,-592.07,9.999e-05,2]
[355970202,1741743043482,-545.41262743,9.999e-05,2]
[355970204,1741743043492,-500.0,9.999e-05,2]
[355970205,1741743043501,-500.0,9.999e-05,2]
[355970206,1741743043511,-500.0,9.999e-05,2]
[355970207,1741743043521,-643.64,9.999e-05,2]
[355970208,1741743043532,-500.0,9.999e-05,2]
[355970209,1741743043542,-500.0,9.999e-05,2]
[355970210,1741743043551,-500.0,9.999e-05,2]
[355970211,1741743043562,-500.0,9.999e-05,2]
[355970212,1741743043572,-500.0,9.999e-05,2]
[355970213,1741743043582,-549.13,9.999e-05,2]
[355970214,1741743043592,-288.75320348,9.999e-05,2]
[355970215,1741743043602,-500.0,9.999e-05,2]
[355970216,1741743043613,-500.0,9.999e-05,2]
[355970217,1741743043623,-500.0,9.999e-05,2]
[355970218,1741743043633,-537.93,9.999e-05,2]
[355970219,1741743043642,-500.0,9.999e-05,2]
[355970220,1741743043652,-500.0,9.999e-05,2]
[355970221,1741743043666,-827.85,9.999e-05,2]
[355970222,1741743043675,-738.0,9.999e-05,2]
[355970223,1741743043685,-500.0,9.999e-05,2]
[355970224,1741743043694,-500.0,9.999e-05,2]
[355970225,1741743043704,-552.3,9.999e-05,2]
[355970226,1741743043713,-761.19,9.999e-05,2]
[355970227,1741743043723,-500.0,9.999e-05,2]
[355970228,1741743043732,-500.0,9.999e-05,2]
[355970229,1741743043742,-1230.39,9.999e-05,2]
[355970230,1741743043751,-663.2,9.999e-05,2]
[355970231,1741743043969,-500.0,9.999e-05,2]